bitfinex-derivatives/quotes_BTCF0:USTF0_20240910
["timestamp","ask_amount","ask_price","bid_price","bid_amount"]
[1725994901795,0.086905,57531.0,57530.0,0.74088]
[1725994901997,0.366905,57531.0,57530.0,0.74]
[1725994902195,0.366905,57531.0,57530.0,0.826906]
[1725994902396,0.28,57531.0,57530.0,0.826906]
[1725994903593,0.28,57531.0,57530.0,0.086906]
[1725994904099,0.28,57531.0,57526.0,0.086912]
[1725994904303,0.086911,57527.0,57526.0,0.086912]
[1725994904898,0.366905,57531.0,57530.0,0.001]
[1725994905402,0.39883392,57531.0,57530.0,0.001]
[1725994905607,0.086911,57527.0,57526.0,0.086911]
[1725994905794,0.367911,57527.0,57526.0,0.087911]
[1725994906192,0.367911,57527.0,57526.0,0.001]
[1725994906393,0.367911,57527.0,57523.0,0.086916]
[1725994906394,0.086915,57524.0,57523.0,0.086916]
[1725994908703,0.087915,57524.0,57523.0,0.087916]
[1725994909001,0.03198273,57524.0,57523.0,0.087916]
[1725994910709,0.11889773,57524.0,57523.0,0.001]
[1725994910902,0.20581273,57524.0,57523.0,0.001]
[1725994915110,1.41424773,57524.0,57523.0,0.001]
[1725994915308,0.086925,57518.0,57513.0,0.086932]
[1725994915605,0.28,57516.0,57513.0,0.086932]
[1725994915797,0.086934,57512.0,57511.0,0.05191255]
[1725994915993,0.086934,57512.0,57509.0,0.06927962]
[1725994915994,0.086936,57511.0,57510.0,0.086937]
[1725994916198,0.366936,57511.0,57510.0,0.086937]
[1725994917007,0.08694,57508.0,57507.0,0.08592996]
[1725994917394,0.08694,57508.0,57507.0,0.11367598]
[1725994917804,0.08694,57508.0,57507.0,0.20061698]
[1725994918707,0.08794,57508.0,57507.0,0.20161698]
[1725994918908,1.20962,57508.0,57504.0,0.10307932]
[1725994919208,1.20962,57508.0,57502.0,0.0692917]
[1725994919209,0.173894,57503.0,57502.0,0.0692917]
[1725994919411,0.1739,57501.0,57500.0,0.05194187]
[1725994919614,0.086953,57499.0,57498.0,0.05194187]
[1725994919914,0.086953,57499.0,57495.0,0.0692917]
[1725994919915,0.086955,57498.0,57495.0,0.05194187]
[1725994920111,0.086959,57495.0,57494.0,0.05194187]
[1725994920316,0.28,57495.0,57494.0,0.0692917]
[1725994920521,0.28,57495.0,57494.0,0.086961]
[1725994920704,0.086953,57499.0,57492.0,0.08660089]
[1725994920705,0.28,57499.0,57492.0,0.08660089]
[1725994920910,0.28,57499.0,57498.0,0.086955]
[1725994921209,0.03263777,57499.0,57498.0,0.086955]
[1725994921509,0.3261,57530.0,57498.0,0.086955]
[1725994921510,0.366932,57513.0,57498.0,1.12176]
[1725994921700,0.086928,57516.0,57513.0,0.086932]
[1725994922006,0.28,57514.0,57511.0,0.05193259]
[1725994922407,0.086911,57527.0,57517.0,0.086925]
[1725994922408,0.086923,57519.0,57517.0,0.086925]
[1725994922612,0.28,57523.0,57515.0,0.0519255]
[1725994922812,0.28,57523.0,57513.0,0.18914346]
[1725994922813,0.086921,57521.0,57519.0,0.086923]
[1725994923533,0.03154383,57523.0,57520.0,0.5734855]
[1725994923712,0.32814,57537.0,57522.0,0.08655513]
[1725994923713,0.60814,57537.0,57522.0,0.08655513]
[1725994924008,0.28,57533.0,57529.0,0.05193424]
[1725994924214,0.086906,57530.0,57529.0,0.05193424]
[1725994924707,0.086905,57531.0,57529.0,0.05193424]
[1725994924909,0.086905,57531.0,57530.0,0.05193424]
[1725994925304,0.086905,57531.0,57521.0,0.74]
[1725994925506,0.086905,57531.0,57525.0,0.086913]
[1725994925707,0.086908,57529.0,57525.0,0.086913]
[1725994926519,0.31068892,57533.0,57521.0,0.74]
[1725994926520,0.36691,57528.0,57521.0,0.74]
[1725994926906,0.08691,57528.0,57523.0,0.086916]
[1725994927106,0.086902,57533.0,57526.0,0.086912]
[1725994927413,0.10362014,57542.0,57536.0,0.086897]
[1725994927616,0.36178384,57549.0,57522.0,0.52148]
[1725994927617,0.41179676,57543.0,57531.0,0.086904]
[1725994927818,0.02817662,57542.0,57532.0,0.086903]
[1725994928112,0.086901,57534.0,57530.0,0.086906]
[1725994929403,0.11743599,57534.0,57530.0,0.086906]
[1725994929807,0.11743599,57534.0,57527.0,0.126]
[1725994930014,0.03053499,57534.0,57527.0,0.126]
[1725994930216,0.086896,57538.0,57534.0,0.0869]
[1725994930407,0.086896,57538.0,57535.0,0.086899]
[1725994930614,0.11834197,57538.0,57535.0,0.086899]
[1725994931211,0.11834197,57538.0,57529.0,0.28]
[1725994931414,0.11834197,57538.0,57537.0,0.086896]
[1725994931415,0.03144597,57538.0,57537.0,0.086896]
[1725994931611,0.086894,57539.0,57537.0,0.086896]
[1725994931919,0.004,57538.0,57537.0,0.086896]
[1725994932128,0.086897,57536.0,57529.0,0.28]
[1725994932912,0.086897,57536.0,57535.0,0.086899]
[1725994933920,0.090897,57536.0,57535.0,0.086899]
[1725994934322,0.004,57536.0,57535.0,0.086899]
[1725994934517,0.28,57552.0,57546.0,0.086882]
[1725994934717,0.28,57552.0,57533.0,0.28]
[1725994934718,0.086885,57545.0,57537.0,0.1253]
[1725994935424,0.35670748,57554.0,57547.0,0.08688]
[1725994935613,0.086891,57541.0,57537.0,0.1253]
[1725994935923,0.086892,57540.0,57539.0,0.086892]
[1725994936319,0.28,57543.0,57536.0,0.086897]
[1725994936515,0.28,57539.0,57529.0,0.1253]
[1725994936821,0.086893,57540.0,57538.0,0.086894]
[1725994937126,0.086893,57540.0,57539.0,0.086893]
[1725994939415,0.094893,57540.0,57539.0,0.086893]
[1725994939926,0.12598885,57540.0,57539.0,0.086893]
[1725994940321,0.15416353,57540.0,57539.0,0.0430664]
[1725994940621,0.30973854,57540.0,57539.0,0.0430664]
[1725994941020,0.22284554,57540.0,57530.0,0.28]
[1725994941221,0.13796356,57531.0,57530.0,0.28]
[1725994941416,0.16613824,57531.0,57530.0,0.366906]
[1725994942011,0.16613824,57531.0,57530.0,0.086906]
[1725994942012,0.12401249,57531.0,57530.0,0.086906]
[1725994942316,0.02817469,57531.0,57527.0,0.212911]
[1725994942524,0.02817469,57531.0,57506.0,0.3267]
[1725994942525,0.086918,57522.0,57506.0,0.3267]
[1725994942717,0.13792106,57508.0,57506.0,0.086942]
[1725994942917,0.12401249,57507.0,57502.0,0.1232]
[1725994943227,0.12401249,57506.0,57505.0,0.086944]
[1725994943624,0.12401249,57506.0,57505.0,1.208624]
[1725994943818,0.12001249,57506.0,57505.0,1.208624]
[1725994944132,0.12067038,57506.0,57505.0,1.295568]
[1725994944325,0.0242877,57507.0,57506.0,0.52168]
[1725994944626,0.13792559,57523.0,57506.0,0.80168]
[1725994944924,0.13792559,57523.0,57505.0,0.686944]
[1725994944925,0.09481464,57522.0,57521.0,0.08692]
[1725994946220,0.09581464,57522.0,57521.0,0.08792]
[1725994947216,0.086909,57529.0,57527.0,0.08691]
[1725994947416,0.086909,57529.0,57525.0,0.086914]
[1725994947831,0.08691,57528.0,57525.0,0.086914]
[1725994948930,0.08691,57528.0,57527.0,0.002]
[1725994949425,0.08791,57528.0,57525.0,0.088914]
[1725994949724,0.08791,57528.0,57525.0,0.14084824]
[1725994950026,0.08791,57528.0,57527.0,0.002]
[1725994951519,0.086912,57526.0,57525.0,0.05193424]
[1725994951724,0.086912,57526.0,57525.0,0.002]
[1725994952129,0.086906,57531.0,57523.0,0.15616265]
[1725994952130,0.086915,57525.0,57523.0,0.15616265]
[1725994952326,0.086915,57525.0,57524.0,0.15616065]
[1725994952531,0.086915,57525.0,57524.0,0.086915]
[1725994953121,0.001,57526.0,57525.0,0.086914]
[1725994953632,0.11748917,57528.0,57526.0,0.086912]
[1725994953928,0.11748917,57528.0,57527.0,0.15622731]
[1725994954117,0.11748917,57528.0,57525.0,0.06931631]
[1725994954322,0.11748917,57528.0,57525.0,0.06931538]
[1725994954520,0.086912,57526.0,57525.0,0.06931538]
[1725994954728,0.086912,57526.0,57524.0,0.003]
[1725994954918,0.086912,57526.0,57525.0,0.086914]
[1725994955522,0.03057917,57528.0,57518.0,0.03055665]
[1725994955523,0.086917,57523.0,57522.0,0.13890388]
[1725994956431,0.086917,57523.0,57515.0,0.08655513]
[1725994956432,0.086921,57520.0,57515.0,0.086928]
[1725994956631,0.086929,57515.0,57514.0,0.05199038]
[1725994956828,0.086929,57515.0,57513.0,0.05199038]
[1725994957131,0.086929,57515.0,57514.0,0.086931]
[1725994957432,0.086924,57518.0,57517.0,0.086925]
[1725994958426,0.086927,57516.0,57515.0,0.05199038]
[1725994958731,0.1255,57522.0,57515.0,0.05199038]
[1725994958732,0.086919,57522.0,57521.0,0.086918]
[1725994959029,0.086917,57524.0,57523.0,0.086917]
[1725994959225,0.086917,57524.0,57519.0,0.28]
[1725994959226,0.08691,57528.0,57527.0,0.08691]
[1725994960023,0.086911,57527.0,57521.0,0.05199038]
[1725994960229,0.08692,57521.0,57519.0,0.05199038]
[1725994960533,0.086921,57520.0,57519.0,0.13891338]
[1725994961432,0.086921,57520.0,57517.0,0.07131451]
[1725994961433,0.086924,57518.0,57517.0,0.002]
[1725994961622,0.173848,57518.0,57517.0,0.002]
[1725994962231,0.28603979,57518.0,57517.0,0.002]
[1725994962432,0.086935,57511.0,57500.0,0.214951]
[1725994962737,0.086935,57511.0,57500.0,0.24643915]
[1725994962738,0.02818502,57510.0,57500.0,0.24643915]
[1725994962929,0.11512202,57510.0,57509.0,0.086938]
[1725994963125,0.15384963,57510.0,57509.0,0.086938]
[1725994963332,0.11512202,57510.0,57509.0,0.086938]
[1725994963724,0.02818502,57510.0,57509.0,0.086938]
[1725994964034,0.366926,57517.0,57511.0,0.086935]
[1725994964035,0.0313128,57512.0,57511.0,0.086935]
[1725994964233,0.03871269,57512.0,57511.0,0.086935]
[1725994964429,0.11512026,57512.0,57511.0,0.086935]
[1725994965236,0.11511937,57512.0,57511.0,0.086935]
[1725994965635,0.02818537,57512.0,57511.0,0.086935]
[1725994965935,0.086929,57515.0,57514.0,0.08693]
[1725994966138,0.15386123,57515.0,57514.0,0.08693]
[1725994967540,0.15486123,57515.0,57514.0,0.08893]
[1725994968740,0.11611435,57515.0,57514.0,0.08893]
[1725994969447,0.15480472,57515.0,57514.0,0.08893]
[1725994970230,0.087929,57515.0,57514.0,0.08893]
[1725994970436,0.087929,57515.0,57514.0,0.29230637]
[1725994970841,0.087929,57515.0,57514.0,0.17548513]
[1725994971342,0.174858,57515.0,57514.0,0.11885152]
[1725994972543,0.087929,57515.0,57514.0,0.002]
[1725994972738,0.209629,57515.0,57514.0,0.002]
[1725994972934,0.087929,57515.0,57514.0,0.29264886]
[1725994973131,0.087929,57515.0,57514.0,0.002]
[1725994973334,0.087929,57515.0,57514.0,0.20568978]
[1725994973744,0.001,57515.0,57514.0,0.20568978]
[1725994974042,0.086907,57530.0,57514.0,1.57914201]
[1725994974250,0.086914,57525.0,57524.0,0.17366306]
[1725994974443,0.11840689,57530.0,57524.0,0.20327445]
[1725994974638,0.11840689,57530.0,57519.0,0.2]
[1725994974639,0.086908,57529.0,57528.0,0.06939735]
[1725994974837,0.086912,57526.0,57525.0,0.08674806]
[1725994975043,0.086912,57526.0,57525.0,0.29017151]
[1725994975540,0.086912,57526.0,57525.0,0.086914]
[1725994976148,0.47950635,57532.0,57528.0,0.086908]
[1725994976342,0.47950635,57532.0,57530.0,0.05204699]
[1725994976645,0.47950635,57532.0,57528.0,0.15630399]
[1725994976646,0.31850935,57532.0,57531.0,0.05204699]
[1725994977139,0.40541235,57532.0,57531.0,0.05204699]
[1725994977339,0.57016404,57532.0,57528.0,0.004]
[1725994977539,0.086908,57529.0,57528.0,0.004]
[1725994977740,0.15421264,57529.0,57528.0,0.004]
[1725994978043,0.12115716,57529.0,57528.0,0.086909]
[1725994978348,0.06730464,57529.0,57528.0,0.086909]
[1725994978541,0.12115716,57530.0,57529.0,0.086908]
[1725994978737,0.1885408,57530.0,57529.0,0.086908]
[1725994979445,0.12115716,57530.0,57529.0,0.086908]
[1725994980048,0.06738364,57531.0,57528.0,0.003]
[1725994980049,0.12115716,57531.0,57530.0,0.086906]
[1725994980440,0.06739754,57531.0,57530.0,0.086906]
[1725994980645,0.086906,57530.0,57529.0,0.003]
[1725994980849,0.15430354,57530.0,57529.0,0.003]
[1725994981145,0.27547757,57530.0,57529.0,0.003]
[1725994981340,0.15430354,57530.0,57529.0,0.003]
[1725994981544,0.20006919,57530.0,57529.0,0.003]
[1725994981744,0.15430354,57530.0,57529.0,0.003]
[1725994982043,0.20002341,57530.0,57529.0,0.003]
[1725994982439,0.086909,57528.0,57527.0,0.08691]
[1725994982634,0.15430654,57528.0,57527.0,0.08691]
[1725994982855,0.086915,57525.0,57524.0,0.086915]
[1725994983147,0.15453459,57525.0,57524.0,0.086915]
[1725994983342,0.06761959,57525.0,57524.0,0.086915]
[1725994983553,0.06764764,57527.0,57520.0,0.086921]
[1725994983851,0.10391468,57521.0,57520.0,0.086921]
[1725994984049,0.10391468,57521.0,57520.0,0.173842]
[1725994984252,0.10391468,57522.0,57521.0,0.17384]
[1725994984549,0.10391468,57523.0,57522.0,0.173836]
[1725994984746,0.10391247,57530.0,57527.0,0.086911]
[1725994984934,0.10391247,57533.0,57532.0,0.086903]
[1725994985139,0.02817549,57533.0,57532.0,0.460709]
[1725994985342,0.10391247,57536.0,57535.0,0.086899]
[1725994985539,0.086887,57544.0,57543.0,0.086886]
[1725994986746,0.2,57562.0,57554.0,0.08687]
[1725994986944,0.2,57562.0,57550.0,0.086875]
[1725994987145,0.086879,57548.0,57547.0,0.13886329]
[1725994987345,0.086879,57548.0,57547.0,0.826881]
[1725994987852,0.086879,57548.0,57547.0,0.87881435]
[1725994988353,0.086879,57548.0,57547.0,0.826881]
[1725994989156,0.1277,57552.0,57550.0,0.086876]
[1725994989157,0.214574,57552.0,57550.0,0.086876]
[1725994989452,0.214574,57552.0,57547.0,0.827881]
[1725994989453,0.007,57548.0,57547.0,0.827881]
[1725994989956,0.093879,57548.0,57547.0,0.001]
[1725994990252,0.334779,57548.0,57547.0,0.001]
[1725994991147,0.421658,57548.0,57547.0,0.001]
[1725994991544,0.334779,57548.0,57547.0,0.001]
[1725994992345,0.334779,57548.0,57547.0,0.00055338]
[1725994992346,0.50178642,57548.0,57547.0,0.00055338]
[1725994995153,0.67375961,57548.0,57547.0,0.00055338]
[1725994995356,0.086893,57539.0,57524.0,0.413615]
[1725994995560,0.12074384,57532.0,57529.0,0.086906]
[1725994995743,0.04593995,57531.0,57522.0,0.1273]
[1725994995947,0.04593995,57531.0,57530.0,0.086905]
[1725994995948,0.19945361,57531.0,57530.0,0.086905]
[1725994996744,0.19945361,57531.0,57530.0,0.089905]
[1725994997245,0.20045361,57531.0,57530.0,0.089905]
[1725994998569,0.11354861,57531.0,57530.0,0.089905]
[1725994999845,0.13907641,57531.0,57530.0,0.089905]
[1725995000058,0.0291754,57531.0,57530.0,0.089905]
[1725995000255,0.11354861,57531.0,57530.0,0.089905]
[1725995000454,0.17197319,57537.0,57536.0,0.086897]
[1725995000656,0.18969424,57541.0,57540.0,0.086891]
[1725995000657,0.08689,57541.0,57540.0,0.086891]
[1725995002261,0.11861128,57541.0,57540.0,0.086891]
[1725995002759,0.11861128,57541.0,57540.0,0.088891]
[1725995004345,0.11861128,57541.0,57540.0,0.002]
[1725995004346,0.20550128,57541.0,57540.0,0.002]
[1725995004953,1.41375128,57541.0,57540.0,0.002]
[1725995005349,0.086903,57532.0,57531.0,0.05193335]
[1725995006046,0.086905,57531.0,57530.0,0.086906]
[1725995006253,0.086902,57533.0,57528.0,0.05193335]
[1725995006461,0.086911,57527.0,57526.0,0.06930973]
[1725995006653,0.086911,57527.0,57524.0,0.06930973]
[1725995006859,0.086911,57527.0,57526.0,0.086912]
[1725995007056,0.086912,57526.0,57520.0,0.17366806]
[1725995007255,0.086917,57523.0,57522.0,0.06928674]
[1725995007453,0.2,57523.0,57516.0,0.086926]
[1725995007757,0.2,57523.0,57515.0,0.74]
[1725995007959,0.2,57523.0,57516.0,0.086927]
[1725995008154,0.086914,57525.0,57516.0,0.086927]
[1725995008356,0.086923,57519.0,57516.0,0.086927]
[1725995008557,0.086925,57518.0,57516.0,0.086927]
[1725995009766,0.086925,57518.0,57515.0,0.74]
[1725995009767,0.086925,57518.0,57515.0,0.826929]
[1725995010151,0.086925,57518.0,57516.0,0.002]
[1725995010351,0.086926,57517.0,57516.0,0.002]
[1725995010657,0.086926,57517.0,57516.0,0.088927]
[1725995011468,0.001,57518.0,57517.0,0.086926]
[1725995011760,0.086918,57523.0,57520.0,0.08692]
[1725995012155,0.086919,57522.0,57520.0,0.08692]
[1725995012552,0.086911,57527.0,57520.0,0.28]
[1725995013065,0.086911,57527.0,57521.0,0.1201]
[1725995013365,0.11825159,57531.0,57521.0,0.1201]
[1725995013559,0.089221,57534.0,57533.0,0.086902]
[1725995013864,0.086896,57537.0,57529.0,0.28]
[1725995014061,0.086896,57537.0,57530.0,0.1175]
[1725995014561,0.086894,57538.0,57537.0,0.086896]
[1725995016264,0.11219302,57538.0,57537.0,0.086896]
[1725995016463,0.06705416,57538.0,57537.0,0.086896]
[1725995016663,0.13800883,57540.0,57539.0,0.086893]
[1725995016967,0.13800883,57540.0,57539.0,0.28]
[1725995016968,0.06728973,57540.0,57539.0,0.28]
[1725995017177,0.02817125,57540.0,57539.0,0.366893]
[1725995017362,0.12075121,57547.0,57546.0,0.086882]
[1725995017671,0.06752971,57547.0,57546.0,0.086882]
[1725995017861,0.03936024,57547.0,57546.0,0.086882]
[1725995018467,0.03936024,57547.0,57541.0,0.086888]
[1725995018769,0.086885,57544.0,57538.0,0.2541]
[1725995018959,0.06752971,57543.0,57538.0,0.2541]
[1725995019163,0.06752971,57542.0,57541.0,0.08689]
[1725995019365,0.03936024,57542.0,57541.0,0.08689]
[1725995019961,0.06752971,57542.0,57541.0,0.08689]
[1725995020266,0.03936024,57542.0,57541.0,0.08689]
[1725995020566,0.086879,57548.0,57539.0,0.74]
[1725995020769,0.10354985,57541.0,57540.0,0.28]
[1725995020968,0.02816891,57546.0,57545.0,0.086884]
[1725995021267,0.06744687,57547.0,57546.0,0.086882]
[1725995021469,0.2532355,57547.0,57546.0,0.086882]
[1725995021662,0.19987311,57547.0,57546.0,0.086882]
[1725995022459,0.03057085,57549.0,57539.0,0.74]
[1725995022663,0.03057085,57549.0,57528.0,0.05197086]
[1725995022664,0.086893,57539.0,57528.0,0.05197086]
[1725995022861,0.28,57530.0,57522.0,0.05197086]
[1725995023063,0.086914,57525.0,57520.0,0.05193691]
[1725995023367,0.086927,57516.0,57515.0,0.05193691]
[1725995023563,0.086914,57525.0,57514.0,0.05193691]
[1725995023767,0.086914,57525.0,57513.0,0.13886791]
[1725995024063,0.086925,57518.0,57513.0,0.13886791]
[1725995024265,0.086925,57518.0,57513.0,0.086931]
[1725995024870,0.1235,57529.0,57506.0,0.4009]
[1725995024871,0.086931,57514.0,57510.0,0.05193691]
[1725995025075,0.086931,57514.0,57507.0,0.06928674]
[1725995025076,0.086931,57514.0,57509.0,0.05193691]
[1725995025266,0.086931,57514.0,57508.0,0.05193691]
[1725995025868,0.086931,57514.0,57510.0,0.086937]
[1725995026264,0.086931,57514.0,57513.0,0.002]
[1725995027067,0.087931,57514.0,57510.0,0.086937]
[1725995027677,0.084932,57513.0,57510.0,0.086937]
[1725995028174,0.086934,57512.0,57510.0,0.086937]
[1725995028366,0.086937,57510.0,57506.0,0.17283691]
[1725995028576,0.086938,57509.0,57506.0,0.1209]
[1725995028875,0.086937,57510.0,57506.0,0.207841]
[1725995029086,0.086937,57510.0,57506.0,0.1209]
[1725995029276,0.085937,57510.0,57509.0,0.086938]
[1725995030183,0.03094174,57514.0,57509.0,0.086938]
[1725995030184,0.03094174,57514.0,57512.0,0.086933]
[1725995030379,0.086929,57515.0,57513.0,0.13880685]
[1725995032077,0.086929,57515.0,57513.0,0.086932]
[1725995032582,0.11774862,57515.0,57513.0,0.086932]
[1725995032784,0.11874862,57515.0,57513.0,0.086932]
[1725995032981,0.03181962,57515.0,57514.0,0.086931]
[1725995033173,0.001,57515.0,57514.0,0.086931]
[1725995033368,0.086923,57519.0,57515.0,0.086928]
[1725995033683,0.086923,57519.0,57516.0,0.74]
[1725995034068,0.086923,57519.0,57515.0,0.086928]
[1725995034381,0.086923,57519.0,57507.0,0.28]
[1725995034382,0.03138326,57519.0,57517.0,0.28]
[1725995034682,0.086905,57531.0,57518.0,0.74]
[1725995035072,0.1179,57532.0,57518.0,0.74]
[1725995035272,0.086905,57531.0,57520.0,0.086921]
[1725995035674,0.086917,57524.0,57520.0,0.086921]
[1725995036073,0.086905,57531.0,57520.0,0.086921]
[1725995036285,0.086917,57523.0,57520.0,0.086921]
[1725995036487,0.15499599,57529.0,57519.0,0.086923]
[1725995036488,0.08691,57528.0,57519.0,0.086923]
[1725995036778,0.15599599,57529.0,57520.0,0.086921]
[1725995036978,0.001,57524.0,57520.0,0.086921]
[1725995037176,0.086918,57523.0,57520.0,0.086921]
[1725995038385,0.02818346,57522.0,57520.0,0.086921]
[1725995039680,0.086918,57523.0,57520.0,0.086921]
[1725995039986,0.11510274,57522.0,57521.0,0.08692]
[1725995040792,0.086919,57522.0,57521.0,0.08692]
[1725995042278,0.086921,57520.0,57506.0,0.1209]
[1725995042479,1.18154451,57522.0,57506.0,0.1209]
[1725995042480,0.2,57512.0,57506.0,0.1209]
[1725995042783,0.2,57512.0,57497.0,0.2]
[1725995042784,0.086937,57510.0,57503.0,0.086946]
[1725995043082,0.086923,57519.0,57494.0,0.1193]
[1725995043083,0.2,57508.0,57498.0,0.1235]
[1725995043484,0.2,57505.0,57493.0,0.2]
[1725995043787,0.086951,57501.0,57493.0,0.2]
[1725995044083,0.10322303,57511.0,57505.0,0.086944]
[1725995044384,0.001,57512.0,57497.0,0.2]
[1725995044689,0.001,57512.0,57511.0,0.086935]
[1725995044884,0.001,57512.0,57511.0,0.286935]
[1725995045085,0.001,57512.0,57511.0,0.808575]
[1725995045286,0.001,57512.0,57511.0,0.286935]
[1725995045478,0.03082209,57518.0,57517.0,0.086925]
[1725995045781,0.086921,57521.0,57518.0,0.086924]
[1725995045986,0.2,57521.0,57511.0,0.74]
[1725995046184,0.2,57521.0,57507.0,0.1182]
[1725995046185,0.001,57508.0,57507.0,0.086941]
[1725995046389,0.001,57508.0,57504.0,0.1235]
[1725995046692,0.086946,57504.0,57501.0,0.086949]
[1725995046888,0.086933,57513.0,57499.0,0.05187485]
[1725995046889,0.086952,57500.0,57499.0,0.086952]
[1725995047793,0.030772,57500.0,57495.0,0.086959]
[1725995047979,0.086958,57496.0,57495.0,0.086959]
[1725995048681,0.1275,57502.0,57493.0,0.2]
[1725995048989,0.001,57508.0,57493.0,0.2]
[1725995049188,0.001,57500.0,57499.0,0.001]
[1725995049490,0.086932,57514.0,57500.0,0.086951]
[1725995049686,0.086932,57514.0,57513.0,0.086932]
[1725995049883,0.086927,57517.0,57513.0,0.086932]
[1725995050292,0.086928,57516.0,57513.0,0.086932]
[1725995050594,0.086928,57516.0,57515.0,0.086929]
[1725995050781,0.1275,57518.0,57511.0,0.086935]
[1725995050782,0.08693,57515.0,57511.0,0.086935]
[1725995050982,0.086931,57514.0,57511.0,0.086935]
[1725995051181,0.086931,57514.0,57513.0,0.001]
[1725995052081,0.001,57517.0,57516.0,0.086927]
[1725995052389,0.001,57517.0,57516.0,0.15621374]
[1725995052692,0.001,57517.0,57516.0,0.086927]
[1725995052888,0.001,57516.0,57515.0,0.002]
[1725995053098,0.001,57516.0,57515.0,0.08874806]
[1725995053391,0.001,57516.0,57515.0,0.610529]
[1725995053594,0.28,57530.0,57516.0,0.002]
[1725995053595,0.086916,57524.0,57516.0,0.002]
[1725995053903,0.086916,57524.0,57519.0,0.05201529]
[1725995054286,0.086919,57522.0,57520.0,0.08692]
[1725995054579,0.08692,57521.0,57520.0,0.08692]
[1725995055380,0.08692,57521.0,57515.0,0.002]
[1725995055381,0.086924,57518.0,57516.0,0.13894229]
[1725995055580,0.086924,57518.0,57515.0,0.002]
[1725995055581,0.28,57521.0,57515.0,0.05401529]
[1725995055787,0.1174,57520.0,57516.0,0.001]
[1725995056180,0.086926,57517.0,57516.0,0.001]
[1725995056385,0.086928,57516.0,57513.0,0.086932]
[1725995056694,0.086928,57516.0,57515.0,0.086929]
[1725995057091,0.086928,57516.0,57515.0,0.13894429]
[1725995057585,0.087928,57516.0,57515.0,0.13894429]
[1725995057783,0.11911322,57516.0,57515.0,0.13894429]
[1725995059094,0.11811322,57516.0,57515.0,0.13894429]
[1725995059398,0.11911322,57516.0,57515.0,0.13994429]
[1725995060683,0.11911322,57516.0,57515.0,0.17467706]
[1725995061097,0.11911322,57516.0,57515.0,0.087929]
[1725995061394,0.11911322,57516.0,57515.0,0.001]
[1725995061697,0.11911322,57516.0,57515.0,0.087929]
[1725995063691,0.001,57516.0,57515.0,0.29183717]
[1725995064088,0.086921,57521.0,57520.0,0.086921]
[1725995064292,0.086921,57521.0,57520.0,0.89626272]
[1725995064600,0.11753167,57521.0,57520.0,0.15626272]
[1725995065192,0.03061067,57521.0,57520.0,0.086921]
[1725995065395,0.03061067,57521.0,57517.0,0.82667715]
[1725995065396,0.086916,57524.0,57523.0,0.086917]
[1725995065599,0.086916,57524.0,57523.0,0.13892486]
[1725995066603,0.086916,57524.0,57523.0,0.086917]
[1725995066901,0.088916,57524.0,57523.0,0.086917]
[1725995067095,0.088916,57524.0,57523.0,0.13892245]
[1725995067297,0.088916,57524.0,57523.0,0.086917]
[1725995067693,0.20974396,57524.0,57523.0,0.086917]
[1725995067991,0.27645133,57524.0,57523.0,0.086917]
[1725995068988,0.086924,57520.0,57519.0,0.086921]
[1725995069190,0.15363137,57520.0,57519.0,0.086921]
[1725995070396,0.15363137,57520.0,57519.0,0.089921]
[1725995072003,0.27261564,57520.0,57519.0,0.003]
[1725995072492,0.3065196,57520.0,57519.0,0.003]
[1725995072696,0.27261564,57520.0,57519.0,0.003]
[1725995073000,0.40417285,57520.0,57519.0,0.003]
[1725995073306,0.086939,57509.0,57502.0,0.32]
[1725995073501,0.13137254,57508.0,57504.0,0.74]
[1725995074003,0.10319006,57508.0,57507.0,0.086941]
[1725995074190,0.10319024,57508.0,57502.0,0.35084548]
[1725995074395,0.10319024,57508.0,57507.0,0.086941]
[1725995074601,0.086937,57510.0,57507.0,0.11704625]
[1725995074904,0.086937,57510.0,57508.0,0.20375904]
[1725995075103,0.086937,57510.0,57504.0,0.10409767]
[1725995075104,0.086923,57519.0,57518.0,0.086924]
[1725995075301,0.086923,57519.0,57518.0,0.15628848]
[1725995075496,0.086923,57519.0,57518.0,0.086924]
[1725995076003,0.11747105,57519.0,57518.0,0.086924]
[1725995076199,0.03054805,57519.0,57518.0,0.086924]
[1725995076506,0.08692,57521.0,57520.0,0.086921]
[1725995077106,0.086924,57518.0,57517.0,0.0867056]
[1725995077399,0.086924,57518.0,57512.0,0.10409767]
[1725995077400,0.086931,57514.0,57513.0,0.086932]
[1725995077600,0.086931,57514.0,57513.0,0.20367499]
[1725995077804,0.086931,57514.0,57513.0,0.29039636]
[1725995078204,0.086931,57514.0,57513.0,0.20387358]
[1725995078603,0.11850686,57514.0,57513.0,0.11694158]
[1725995078792,0.11950686,57514.0,57513.0,0.086932]
[1725995079100,0.03257586,57514.0,57513.0,0.20394009]
[1725995079603,0.03257586,57514.0,57513.0,0.30803776]
[1725995081204,0.03257586,57514.0,57513.0,0.20394009]
[1725995082005,0.03257586,57514.0,57513.0,0.3433088]
[1725995082303,0.11950686,57514.0,57513.0,0.22125047]
[1725995082607,0.15817472,57514.0,57513.0,0.086932]
[1725995082809,0.18636008,57514.0,57513.0,0.086932]
[1725995083196,0.14769222,57514.0,57513.0,0.086932]
[1725995083408,0.18630876,57514.0,57513.0,0.086932]
[1725995084307,0.14769222,57514.0,57513.0,0.086932]
[1725995084511,0.18634913,57514.0,57513.0,0.086932]
[1725995084812,0.14769222,57514.0,57513.0,0.086932]
[1725995085012,0.1863607,57514.0,57513.0,0.086932]
[1725995085313,0.14769222,57514.0,57513.0,0.086932]
[1725995086214,0.18631502,57514.0,57513.0,0.086932]
[1725995086510,0.14769222,57514.0,57513.0,0.086932]